[Event "Turkish Championship 2022"]
[Site "Kemer-Antalya"]
[Date "2022.12.01"]
[Round "7.5"]
[White "Yilmazyerli, Mert"]
[Black "Koksal, Ege"]
[Result "1/2-1/2"]
[ECO "A38"]
[WhiteElo "2534"]
[BlackElo "2321"]
[Annotator "TA"]
[PlyCount "96"]
[EventDate "2022.11.25"]
[EventCountry "TUR"]
[SourceTitle "playchess.com"]
[Source "ChessBase"]
[SourceQuality "1"]
[TimeControl "40/5400+30:1800+30"]

{[%evp 21,96,30,29,0,8,0,0,0,14,-17,-12,-15,-12,-14,0,-31,-31,-31,-26,-31,-24,-31,-31,-31,0,-25,-14,-29,-4,-59,-59,-59,-64,-49,-23,-53,-55,-52,0,0,0,0,0,0,0,0,0,-4,0,-3,-6,-3,0,-4,0,0,0,0,0,0,0,-4,0,0,0,0,0,0,0,0,0,0,0,0,0,0,0]} 1. c4 {[%emt 0:05:00]} Nf6 {[%emt 0:05:00]} 2. Nc3 {[%emt 0:01:30]} c5 {[%emt 0:03:30]} 3. Nf3 {[%emt 0:00:00]} d5 {[%emt 0:04:30]} 4. cxd5 {[%emt 0:01:00]} Nxd5 {[%emt 0:00:00]} 5. g3 {[%emt 0:06:30]} Nc6 {[%emt 0:02:00]} 6. Nxd5 {[%emt 0:00:30]} Qxd5 {[%emt 0:00:30]} 7. Bg2 {[%emt 0:00:00]} g6 {[%emt 0:03:30]} 8. O-O {[%emt 0:02:00]} Bg7 {[%emt 0:02:30]} 9. d3 {[%emt 0:00:00]} O-O {[%emt 0:04:30]} 10. Be3 {[%emt 0:00:00]} Qd6 {[%emt 0:16:30]} 11. Rc1 {[%emt 0:01:30]} Nd4 {[%emt 0:06:30]} 12. Nd2 {[%emt 0:07:30] A38: Symmetrical English vs ...g6: 4 Bg2 Bg7 5 Nf3 Nf6.} (12. Nxd4 {simplifies} cxd4 13. Bd2 Qe6 14. b3) 12... Bg4 {[%emt 0:13:30]} 13. Re1 {[%emt 0:10:30]} (13. Bxd4 {with more complications.} Qxd4 14. Bxb7 Rab8 15. Nb3) 13... Qb6 {[%emt 0:04:30] [#]} 14. Bxd4 $146 {[%emt 0:11:30]} ({Predecessor:} 14. Nc4 Qa6 15. Bxd4 Bxd4 16. Qb3 Rab8 17. a4 b5 18. axb5 Rxb5 19. Qc2 Rfb8 20. Rb1 {½-½ (43) Tan,Z (2483)-Ding,Y (2427) Xinghua 2013}) 14... Bxd4 {[%emt 0:02:30]} 15. Nc4 {[%emt 0:00:30]} (15. Qa4 $5 {[%cal Re2e3]} Bf5 16. Nc4 $11) 15... Qf6 {[%emt 0:02:30]} 16. Rf1 {[%emt 0:00:30]} Qe6 {[%emt 0:04:30]} 17. Rc2 {[%emt 0:04:30]} Rab8 {[%emt 0:00:30]} 18. a4 {[%emt 0:00:30]} b6 {[%emt 0:01:30]} 19. Qd2 {[%emt 0:00:30]} Qd7 {[%emt 0:01:30]} 20. b3 {[%emt 0:03:30]} Rfd8 {[%emt 0:00:38]} 21. Qf4 {[%emt 0:03:30]} Be6 {[%emt 0:02:50]} (21... a5 {is interesting.} 22. Bc6 Qc8 23. Bf3 Bh3) 22. Rb1 {[%emt 0:01:30]} Bf6 {[%emt 0:02:14]} 23. h4 {[%emt 0:06:30]} Qd4 {[%emt 0:00:58]} 24. Qc1 {[%emt 0:03:30]} (24. Qxd4 {simplifies} Bxd4 25. a5 Bxc4 26. bxc4 bxa5 27. Rb5) 24... h5 {[%emt 0:00:58]} 25. b4 {[%emt 0:02:30]} ({Better is} 25. a5 $11) 25... cxb4 $15 {[%emt 0:00:33]} 26. Rxb4 {[%emt 0:00:00]} Rdc8 {[%emt 0:01:19]} 27. Qb1 {[%emt 0:04:00][%cal Oc4a5]} Qa1 {[%emt 0:02:26]} 28. Qxa1 {[%emt 0:00:30]} (28. Rc1 {simplifies} Qxb1 29. Rcxb1 Bxc4 30. Rxc4 Rxc4 31. dxc4 Rc8 32. Rc1) 28... Bxa1 {[%emt 0:00:03] This pair of bishops is nice.} 29. Kh2 {[%emt 0:05:30]} a5 {[%emt 0:05:24]} (29... Bd7 $15) 30. Rb1 $11 {[%emt 0:00:30] The position is equal.} Bd4 {[%emt 0:04:07][%cal Ba1d4,Bd4c5,Bc5d6][%mdl 32]} 31. Bh3 {[%emt 0:01:10]} f5 {[%emt 0:00:01]} ({But not} 31... Bxf2 32. Bxe6 fxe6 33. e3 Rxc4 34. dxc4 (34. Rxc4 Bxe3 35. Rc6 Kf7 $16) 34... Bxe3 35. c5 $16) 32. e3 {[%emt 0:00:23]} Bxc4 {[%emt 0:00:16]} 33. dxc4 {[%emt 0:02:07]} Bc5 {[%emt 0:00:50]} 34. Rd1 {[%emt 0:00:20]} Rd8 {[%emt 0:00:27]} 35. Rcd2 {[%emt 0:00:30]} Rxd2 {[%emt 0:00:00]} 36. Rxd2 {[%emt 0:00:00][%mdl 4096] Endgame KRB-KRB} Kf7 {[%emt 0:00:21]} 37. Bg2 {[%emt 0:00:28]} Bd6 {[%emt 0:00:35]} 38. Bc6 {[%emt 0:01:22]} Kf6 {[%emt 0:00:58]} 39. Kg2 {[%emt 0:00:13]} Rc8 {[%emt 0:00:00]} 40. Bb5 {[%emt 0:00:00]} Rd8 {[%emt 0:00:00]} 41. f4 {[%emt 0:02:57]} Bc7 {[%emt 0:04:02]} 42. Rxd8 {[%emt 0:00:30]} Bxd8 {[%emt 0:00:00] KB-KB} 43. Be8 {[%emt 0:00:00]} Bc7 {[%emt 0:00:00]} 44. Kf3 {[%emt 0:00:00]} e5 {[%emt 0:00:30]} 45. fxe5+ {[%emt 0:00:30]} Bxe5 {[%emt 0:00:00]} 46. Kg2 {[%emt 0:00:00]} Bd6 {[%emt 0:00:00]} 47. Kf3 {[%emt 0:00:00]} Be5 {[%emt 0:00:00]} 48. Kg2 {[%emt 0:00:30]} Bd6 {[%emt 0:00:00] Weighted Error Value: White=0.09 (flawless) /Black=0.06 (flawless)} 1/2-1/2

[Event "Turkish Championship 2022"]
[Site "Kemer-Antalya"]
[Date "2022.12.02"]
[Round "8.1"]
[White "Yavuz, Efe Metehan"]
[Black "Koksal, Ege"]
[Result "1/2-1/2"]
[ECO "C42"]
[WhiteElo "2256"]
[BlackElo "2321"]
[Annotator "TA"]
[PlyCount "130"]
[EventDate "2022.11.25"]
[EventCountry "TUR"]
[SourceTitle "playchess.com"]
[Source "ChessBase"]
[SourceQuality "1"]
[TimeControl "40/5400+30:1800+30"]

{[%evp 18,130,34,33,31,35,37,36,36,35,39,14,56,56,55,0,36,18,47,41,43,13,50,49,37,30,34,12,16,0,15,-3,0,-18,0,-22,-28,-37,-38,-46,-46,-51,-45,-45,-56,-66,-69,-66,0,-15,-5,-7,0,0,0,0,0,0,0,0,0,0,0,0,0,0,0,0,0,0,0,0,0,0,0,0,0,0,0,-20,-8,-18,-20,-21,-13,-15,-18,-121,-68,-75,-53,-75,-75,-75,-75,-75,-75,-75,-75,-75,0,-75,0,0,0,-74,0,0,0,-74,-75,-170,-186,-183,-152]} 1. e4 {[%emt 0:01:00]} e5 {[%emt 0:06:00]} 2. Nf3 {[%emt 0:00:30]} Nf6 {[%emt 0:00:30][%cal Bg8f6,Bf6e4,Be4d2][%mdl 32]} 3. Nxe5 {[%emt 0:00:00]} d6 {[%emt 0:00:30]} 4. Nf3 {[%emt 0:00:00]} Nxe4 {[%emt 0:00:30]} 5. d4 {[%emt 0:00:00]} d5 {[%emt 0:00:00]} 6. Bd3 {[%emt 0:00:00]} Nc6 {[%emt 0:00:00]} 7. O-O {[%emt 0:00:30]} Be7 {[%emt 0:00:00]} 8. Nbd2 {[%emt 0:01:30]} Nxd2 {[%emt 0:03:00] 8...Bf5 is the hot move.} 9. Bxd2 {[%emt 0:00:30]} Bg4 {[%emt 0:00:00]} 10. c3 {[%emt 0:00:00]} O-O {[%emt 0:01:00] C42: Petroff Defence: 3 Nxe5 and unusual White 3rd moves.} 11. h3 {[%emt 0:01:00]} Bh5 {[%emt 0:00:00]} 12. g3 {[%emt 0:09:30]} Qd7 {[%emt 0:03:00] White is slightly better.} 13. Kg2 {[%emt 0:03:30][%cal Of3e5]} Bg6 {[%emt 0:01:30]} 14. Bf4 {[%emt 0:11:30]} (14. Bxg6 {with more complications.} fxg6 15. Qe2 Rae8 16. Qd3) 14... Bd6 {[%emt 0:04:30]} 15. Bxg6 {[%emt 0:02:30]} hxg6 {[%emt 0:03:30]} 16. Qd2 {[%emt 0:02:30] [#]} (16. Bxd6 $14 Qxd6 17. h4) 16... Rfe8 $146 {[%emt 0:01:30]} ({Predecessor:} 16... Rae8 17. Rfe1 Bxf4 18. Qxf4 f6 19. h4 Nd8 20. Rxe8 Rxe8 21. Re1 Rxe1 22. Nxe1 Nf7 {½-½ (31) Lagno,K (2550)-Ushenina,A (2426) Sitges 2021}) 17. Rfe1 {[%emt 0:04:30]} Ne7 {[%emt 0:20:30]} 18. Bxd6 {[%emt 0:14:30]} Qxd6 {[%emt 0:01:30]} 19. Re2 {[%emt 0:00:30]} Nc6 {[%emt 0:21:30]} 20. Rae1 {[%emt 0:01:30]} Rxe2 {[%emt 0:00:00]} 21. Qxe2 {[%emt 0:02:30]} f6 $1 {[%emt 0:06:00] Prevents Ng5.} 22. b4 {[%emt 0:18:30] Hoping for b5.} Kf7 {[%emt 0:04:30]} 23. a4 {[%emt 0:02:30]} Qd7 {[%emt 0:05:06]} 24. Qa2 {[%emt 0:02:30]} (24. h4 {keeps more tension.} a5 25. b5 Ne7 26. Ng1) 24... Re8 {[%emt 0:02:35]} (24... Rh8 {feels hotter.} 25. h4 g5 26. Kg1 gxh4 27. Nxh4 g5) 25. Rc1 {[%emt 0:01:30]} Ne7 {[%emt 0:01:21][%cal Bc6e7,Be7f5,Bf5d6,Bd6c4][%mdl 32]} 26. Re1 {[%emt 0:04:19]} g5 {[%emt 0:01:35]} (26... Rh8 {is more complex.} 27. h4 g5 28. Qe2 Nc8) 27. Qc2 {[%emt 0:05:07]} Rh8 {[%emt 0:01:10]} 28. Ng1 {[%emt 0:00:53]} Nf5 {[%emt 0:01:30]} 29. Qb3 {[%emt 0:02:33]} c6 {[%emt 0:00:30]} 30. b5 {[%emt 0:00:36]} Nd6 {[%emt 0:00:21]} 31. g4 {[%emt 0:02:10]} Re8 {[%emt 0:01:26]} (31... cxb5 32. Qxd5+ Kg6 33. axb5 $16) (31... Nc4 {seems wilder.} 32. bxc6 Qxc6 33. Nf3 g6) 32. bxc6 {[%emt 0:02:39]} bxc6 {[%emt 0:01:10]} ({Black should try} 32... Qxc6 $15 33. Rxe8 Kxe8) 33. Rb1 {[%emt 0:01:07]} Qe7 {[%emt 0:01:45]} 34. Nf3 {[%emt 0:00:11]} Nc4 {[%emt 0:01:15]} 35. Re1 {[%emt 0:01:10] Prevents Qe4.} Qc7 {[%emt 0:01:19]} 36. Rxe8 {[%emt 0:00:30]} Kxe8 $11 {[%emt 0:00:00][%mdl 4096] Endgame KQN-KQN} 37. Qc2 {[%emt 0:00:09]} Qf4 {[%emt 0:00:58]} 38. Qh7 {[%emt 0:00:31]} Kf7 {[%emt 0:01:36]} 39. Qh5+ {[%emt 0:00:07]} Kf8 {[%emt 0:01:08]} 40. Qh8+ {[%emt 0:00:30]} Kf7 {[%emt 0:00:00]} 41. Qh5+ {[%emt 0:14:28]} Kf8 {[%emt 0:00:45]} 42. Qh8+ {[%emt 0:00:30]} Kf7 {[%emt 0:00:30]} 43. Qa8 {[%emt 0:01:30]} Qc7 {[%emt 0:01:30]} 44. h4 {[%emt 0:00:30]} Qd7 {[%emt 0:18:05]} (44... Nb6 $5 45. Qh8 $8 Qf4 46. Qh5+ g6 47. Qh7+ Ke6 48. Nxg5+ (48. Qxa7 $2 {is the wrong capture.} Qxg4+ 49. Kf1 Nc4 $19) (48. Qg8+ Kd7 $11) 48... fxg5 49. Qxg6+ Ke7 50. Qg7+ Kd6 51. Qg6+ Kc7 52. Qg7+ Kd6 53. Qg6+ Kc7 54. Qg7+ Kd8 55. Qh8+ Ke7 56. Qg7+ Kd8 57. Qg8+ Ke7 58. Qg7+ $11) 45. Kh3 {[%emt 0:00:00]} Nd6 {[%emt 0:01:46]} 46. hxg5 {[%emt 0:01:00]} Ne4 $36 {[%emt 0:01:07][%csl LRc3,LRf2,LRg5][%mdl 2048] Black has some pressure.} 47. gxf6 {[%emt 0:02:11] Threatening mate with Ne5+.} gxf6 {[%emt 0:00:50]} 48. Qh8 {[%emt 0:06:33]} Nxf2+ {[%emt 0:00:02]} 49. Kg2 {[%emt 0:00:11]} Ne4 {[%emt 0:03:01]} 50. Qh5+ {[%emt 0:01:40]} Ke7 {[%emt 0:00:28] aiming for ...Qd6.} 51. Nh4 $1 {[%emt 0:00:36]} Kd8 {[%emt 0:00:24] next ...Qd6 is good for Black.} 52. Qh8+ {[%emt 0:04:08]} (52. Nf5 $11 {keeps the balance.}) 52... Kc7 {[%emt 0:00:05]} (52... Qe8 $17 53. Qh6 Qe7) 53. Nf5 $15 {[%emt 0:00:00]} Kb7 {[%emt 0:00:40]} (53... Kb6 {simplifies} 54. Qb8+ Qb7 55. Qxb7+ Kxb7 56. c4 dxc4 57. Kf3 Ng5+) 54. Kf3 {[%emt 0:03:10]} Qc7 {[%emt 0:00:48] Strongly threatening ...Qa5.} ({Don't play} 54... Nxc3 55. Qxf6 Kb6 56. Qg7 $14) 55. c4 {[%emt 0:00:14]} Nd2+ $1 {[%emt 0:06:38]} 56. Ke2 {[%emt 0:00:51]} Nxc4 {[%emt 0:00:22] ...Qf4 is the strong threat.} 57. Qxf6 {[%emt 0:01:43] [#]} Qh2+ $1 {[%emt 0:00:01]} 58. Kf3 {[%emt 0:00:10] [#]} Nd2+ $1 {[%emt 0:01:04]} 59. Ke3 {[%emt 0:00:03]} Nc4+ {[%emt 0:01:37]} 60. Kf3 {[%emt 0:00:04]} Nd2+ {[%emt 0:01:52]} 61. Ke3 {[%emt 0:00:01]} Nf1+ {[%emt 0:02:35]} 62. Kf3 {[%emt 0:00:08]} Nd2+ {[%emt 0:00:43]} 63. Ke3 {[%emt 0:00:30]} Ne4 {[%emt 0:00:30] ( -> ...Qf2+)} 64. Qh4 {[%emt 0:00:30] Inhibits Qf2+.} (64. Qe7+ $17 Ka6 65. Qb4) 64... Qd2+ $19 {[%emt 0:00:30]} 65. Kf3 {[%emt 0:00:35][%cal Of5d6]} Ka6 {[%emt 0:00:01] Weighted Error Value: White=0.12 (very precise) /Black=0.10 (very precise)} 1/2-1/2

[Event "Turkish Championship 2022"]
[Site "Kemer-Antalya"]
[Date "2022.12.02"]
[Round "8.2"]
[White "Yaran, Siar"]
[Black "Yilmazyerli, Mert"]
[Result "1/2-1/2"]
[ECO "B25"]
[WhiteElo "2291"]
[BlackElo "2534"]
[Annotator "TA"]
[PlyCount "116"]
[EventDate "2022.11.25"]
[EventCountry "TUR"]
[SourceTitle "playchess.com"]
[Source "ChessBase"]
[SourceQuality "1"]
[TimeControl "40/5400+30:1800+30"]

{[%evp 20,116,-13,-16,22,15,7,16,25,10,33,41,37,-20,0,-8,20,-61,-60,-54,-73,-70,0,0,0,0,0,0,0,0,0,0,0,0,17,23,16,16,15,15,25,24,22,22,22,0,0,0,0,0,8,18,3,0,0,0,0,0,0,0,0,0,0,0,0,0,0,0,0,0,0,0,0,0,0,0,0,0,0,0,0,0,0,0,0,0,0,0,0,0,0,0,0,0,0,0,0,0,0]} 1. e4 {[%emt 0:04:00]} c5 {[%emt 0:03:00]} 2. Nc3 {[%emt 0:01:30]} d6 {[%emt 0:00:30]} 3. f4 {[%emt 0:00:30]} g6 {[%emt 0:00:00]} 4. Nf3 {[%emt 0:01:30]} Bg7 {[%emt 0:00:00]} 5. g3 {[%emt 0:00:30]} Nc6 {[%emt 0:01:30]} 6. Bg2 {[%emt 0:00:30]} e6 {[%emt 0:01:30]} 7. O-O {[%emt 0:00:30]} Nge7 {[%emt 0:00:30]} 8. d3 {[%emt 0:00:00]} O-O {[%emt 0:00:00]} 9. Bd2 {[%emt 0:02:00]} Rb8 {[%emt 0:01:00]} 10. a3 {[%emt 0:00:30]} b5 {[%emt 0:00:30]} 11. Rb1 {[%emt 0:00:30]} c4 {[%emt 0:04:30] B25: Closed Sicilian: 3 g3, lines without early Be3.} 12. Be3 {[%emt 0:13:30]} cxd3 {[%emt 0:04:30]} 13. Qxd3 {[%emt 0:00:30]} b4 {[%emt 0:03:30]} 14. axb4 {[%emt 0:01:30]} Nxb4 {[%emt 0:01:30]} 15. Qd2 {[%emt 0:00:30]} Qc7 {[%emt 0:00:00] [#]} 16. Bd4 $146 {[%emt 0:08:30]} ({White should try} 16. Nd4 $14) ({Predecessor:} 16. Rfd1 Rd8 17. Qf2 a5 18. g4 Bd7 19. f5 Nec6 20. f6 Bxf6 21. Ng5 Bxg5 22. Bxg5 {0-1 (41) Rubinetti,J-Najdorf,M Mar del Plata 1969}) 16... e5 $11 {[%emt 0:03:00]} 17. Be3 {[%emt 0:01:30]} Be6 {[%emt 0:05:30]} 18. f5 {[%emt 0:09:30]} (18. Rf2 $11) 18... gxf5 $15 {[%emt 0:00:30]} 19. Bh6 {[%emt 0:00:30]} f6 {[%emt 0:08:30]} 20. Nh4 {[%emt 0:04:30][%cal Re4f5]} d5 {[%emt 0:16:30]} (20... Bxh6 $1 $15 21. Qxh6 Nxc2 22. exf5 Bb3) 21. exd5 {[%emt 0:07:30]} Rbd8 {[%emt 0:11:30]} 22. Bxg7 {[%emt 0:02:30] Chess con chili.} Kxg7 {[%emt 0:01:30]} 23. Rbd1 {[%emt 0:00:30]} Nbxd5 {[%emt 0:03:30]} 24. Nxd5 {[%emt 0:09:30]} Nxd5 {[%emt 0:03:30]} 25. Bxd5 {[%emt 0:03:30]} (25. Nxf5+ $2 {perishes.} Bxf5 26. Bxd5 Bxc2 $19) 25... Qc5+ {[%emt 0:09:14]} 26. Qf2 {[%emt 0:01:30]} Qxf2+ {[%emt 0:02:56]} 27. Kxf2 {[%emt 0:02:30]} Bxd5 {[%emt 0:01:26]} 28. Nxf5+ {[%emt 0:00:30]} Kf7 {[%emt 0:00:10]} 29. Ra1 {[%emt 0:01:30]} Rd7 {[%emt 0:01:46]} 30. Rfd1 {[%emt 0:01:30]} Rfd8 {[%emt 0:01:19]} 31. Ne3 {[%emt 0:00:00] The position is equal.} Kg6 {[%emt 0:02:54]} 32. Nxd5 {[%emt 0:04:03]} Rxd5 {[%emt 0:00:30]} 33. Rxd5 {[%emt 0:00:30]} Rxd5 $11 {[%emt 0:00:00][%mdl 4096] Endgame KR-KR} 34. Ke3 {[%emt 0:00:00] Prevents Rd2.} ({But not} 34. Rxa7 Rd2+ 35. Kg1 Rxc2 $15) 34... a5 {[%emt 0:00:01]} 35. c4 {[%emt 0:03:07]} Rc5 {[%emt 0:00:04]} 36. Kd3 {[%emt 0:01:00]} f5 {[%emt 0:00:14]} 37. Kc3 {[%emt 0:01:29]} f4 {[%emt 0:00:28]} 38. gxf4 {[%emt 0:02:09]} exf4 {[%emt 0:00:30]} 39. Kd4 {[%emt 0:00:00]} Rh5 {[%emt 0:01:56]} 40. b3 {[%emt 0:00:00]} Rxh2 {[%emt 0:00:00]} 41. Rxa5 {[%emt 0:10:12]} f3 {[%emt 0:07:02]} 42. Ra1 {[%emt 0:05:30]} Re2 {[%emt 0:05:30]} 43. Rf1 {[%emt 0:09:30]} f2 {[%emt 0:00:30]} 44. b4 {[%emt 0:00:30]} Kf6 {[%emt 0:01:30]} 45. Kc5 {[%emt 0:05:38]} Ke5 {[%emt 0:15:21]} 46. b5 {[%emt 0:01:18]} Rb2 {[%emt 0:03:15]} 47. Kb6 {[%emt 0:03:12] [#] And now c5 would win.} Kd4 {[%emt 0:01:14]} 48. c5 {[%emt 0:00:21] aiming for c6.} Ke3 {[%emt 0:00:57]} ({Don't take} 48... Kc4 49. Rc1+ Kd3 50. c6 $16) 49. c6 {[%emt 0:01:28]} Ke2 $1 {[%emt 0:00:05]} 50. Rxf2+ {[%emt 0:02:08]} Kxf2 {[%emt 0:00:07] KR-KPP} 51. Ka6 {[%emt 0:00:28]} (51. c7 $5 Rc2 $8 52. Kb7 $11) 51... Ra2+ {[%emt 0:03:33]} 52. Kb7 {[%emt 0:00:30] [#] Strongly threatening c7.} h5 {[%emt 0:00:00]} 53. c7 {[%emt 0:06:45]} Rc2 {[%emt 0:00:00]} 54. b6 {[%emt 0:01:44]} h4 {[%emt 0:00:00]} 55. c8=Q {[%emt 0:00:46]} Rxc8 {[%emt 0:00:19]} 56. Kxc8 {[%emt 0:00:30] White threatens b7 and mate.} h3 {[%emt 0:00:00]} 57. b7 {[%emt 0:00:00]} h2 {[%emt 0:00:07]} 58. b8=Q {[%emt 0:00:16]} h1=Q {[%emt 0:00:00] Weighted Error Value: White=0.06 (flawless) /Black=0.05 (flawless)} 1/2-1/2

[Event "Turkish Championship 2022"]
[Site "Kemer-Antalya"]
[Date "2022.12.02"]
[Round "8.3"]
[White "Agdelen, Huseyin Can"]
[Black "Kilic, Eray"]
[Result "0-1"]
[ECO "B51"]
[WhiteElo "2416"]
[BlackElo "2437"]
[Annotator "TA"]
[PlyCount "92"]
[EventDate "2022.11.25"]
[EventCountry "TUR"]
[SourceTitle "playchess.com"]
[Source "ChessBase"]
[SourceQuality "1"]
[TimeControl "40/5400+30:1800+30"]

{[%evp 9,92,16,18,15,14,9,14,29,35,37,35,42,40,43,43,32,86,13,43,48,63,65,178,158,165,164,239,189,216,205,313,302,312,300,356,322,309,342,287,175,303,286,283,180,193,186,360,161,161,16,19,-62,-66,-133,-131,-226,-220,-291,-291,-302,-296,-379,-385,-510,-437,-425,-425,-447,-462,-460,-460,-531,-528,-636,-623,-612,-605,-600,-592,-5550,-5543,-5427,-5397,-804,-969]} 1. e4 {[%emt 0:03:00]} c5 {[%emt 0:01:00]} 2. Nf3 {[%emt 0:00:30]} d6 {[%emt 0:00:00]} 3. Bb5+ {[%emt 0:00:30]} Nd7 {[%emt 0:00:00]} 4. O-O {[%emt 0:00:00]} a6 {[%emt 0:00:30]} 5. Bd3 {[%emt 0:00:00]} Ngf6 {[%emt 0:00:30]} 6. Re1 {[%emt 0:00:30] B51: Sicilian: Moscow Variation (3 Bb5+) without 3...Bd7.} Qc7 {[%emt 0:04:30]} 7. Bf1 {[%emt 0:08:30] [#]} b6 $146 {[%emt 0:07:30]} ({Predecessor:} 7... Ne5 8. Nxe5 dxe5 9. a4 b6 10. Na3 g6 11. Nc4 Bg4 12. f3 Be6 13. d3 h5 {0-1 (44) Kovalev,V (2623)-Giri,A (2772) Chess.com INT 2022}) 8. c4 {[%emt 0:07:30] The position is equal.} Bb7 {[%emt 0:03:30]} 9. Nc3 {[%emt 0:00:30]} e6 {[%emt 0:00:30]} 10. d4 {[%emt 0:04:30]} cxd4 {[%emt 0:00:00]} 11. Nxd4 {[%emt 0:02:30]} Be7 {[%emt 0:01:00]} 12. b3 {[%emt 0:04:30]} b5 {[%emt 0:11:30] [#]} (12... O-O $14) 13. Bb2 {[%emt 0:19:30]} (13. Nd5 $1 $16 {[%cal Rd5c7]} exd5 14. exd5) 13... b4 {[%emt 0:07:30] [#]} (13... bxc4 {simplifies} 14. Bxc4 O-O 15. Bxe6 fxe6 16. Nxe6 Qb6) 14. Nd5 {[%emt 0:01:30]} exd5 {[%emt 0:01:30]} 15. exd5 {[%emt 0:00:00] And now Nf5 would win.} Kd8 {[%emt 0:21:30]} (15... Ne5 16. Nf5 $16) ({Black should try} 15... Kf8 $14) 16. Nf5 $1 $18 {[%emt 0:04:00]} (16. Qe2 Re8 $11) 16... Bf8 {[%emt 0:01:30] [#]} (16... Ne5 $2 17. Nxe7 Kxe7 18. f4) 17. Qd2 $1 {[%emt 0:00:30]} h6 {[%emt 0:16:30]} (17... Kc8 $142) 18. Qxb4 {[%emt 0:05:30]} Kc8 {[%emt 0:11:23]} 19. Qd2 {[%emt 0:07:30][%mdl 1024] White has strong compensation.} g6 {[%emt 0:02:12]} (19... h5 {might work better.} 20. g3 Kb8) 20. Ne7+ {[%emt 0:01:30]} Kd8 {[%emt 0:00:44] [#]} 21. Bc3 $1 {[%emt 0:07:30][%mdl 64]} a5 {[%emt 0:00:41]} (21... Bxe7 22. Ba5) 22. Nc6+ {[%emt 0:00:30]} Bxc6 {[%emt 0:00:35]} 23. dxc6 {[%emt 0:00:30]} Qxc6 {[%emt 0:00:39]} 24. Bxa5+ {[%emt 0:01:30]} Kc8 {[%emt 0:00:01]} (24... Rxa5 $142 25. Qxa5+ Qc7 26. Qa8+ Qb8 27. Qa5+ Qc7 28. Qa8+ Qb8 29. Qxb8+ Nxb8) 25. Bc3 {[%emt 0:01:38]} Bg7 {[%emt 0:00:58]} 26. Qb2 {[%emt 0:00:23] Black must now prevent g3.} Ne5 {[%emt 0:01:34] [#]} 27. Bd4 $1 {[%emt 0:04:15]} Nh5 $2 {[%emt 0:01:51]} (27... Re8 {was worth a try.} 28. f4 (28. c5 Kd8 $16) 28... Nfd7) 28. Rad1 {[%emt 0:01:06]} (28. c5 $142 {cxd6 is the strong threat.} Nf4 29. cxd6) 28... Nf4 {[%emt 0:00:34]} 29. Bxe5 {[%emt 0:00:22]} ({Only move:} 29. c5 $1 $18 {[%cal Rc5d6] Strongly threatening cxd6.} Kb7 30. Qc3 (30. Qd2 Nh3+ 31. Kh1 dxc5 $16)) 29... dxe5 $11 {[%emt 0:01:04]} (29... Bxe5 30. Rxe5 dxe5 31. Qxe5 $16) 30. g3 {[%emt 0:00:46]} ({White should play} 30. c5 $11) 30... Ne6 $15 {[%emt 0:00:08]} 31. Bg2 {[%emt 0:04:01] Inhibits e4. White is on the road to losing.} (31. Qb1 $15) 31... e4 $1 $17 {[%emt 0:00:05]} 32. Qe2 {[%emt 0:00:00]} (32. Qc2 $17 f5 33. Rxe4 fxe4 34. Bxe4) 32... f5 $19 {[%emt 0:00:49]} 33. c5 {[%emt 0:00:00] Hoping for Rd6.} Nd4 {[%emt 0:00:11]} (33... Qxc5 34. Rc1 Bc3 35. Qe3 Qxe3 36. Rxe3 $11) 34. Qc4 {[%emt 0:00:35]} Rd8 {[%emt 0:00:08]} ({Worse is} 34... Rxa2 35. Rxd4 Bxd4 36. Qxd4 $11) 35. Kh1 {[%emt 0:03:31]} Rxa2 {[%emt 0:02:43]} 36. Qf7 {[%emt 0:01:04]} Qf6 {[%emt 0:00:25] Black is clearly winning.} 37. Qc4 {[%emt 0:00:24]} Qa6 {[%emt 0:01:16]} (37... Rxf2 $2 {perishes.} 38. Qa4 $19) 38. Qf7 {[%emt 0:00:25]} Be5 {[%emt 0:00:23]} 39. c6 {[%emt 0:00:33]} Qxc6 {[%emt 0:00:42]} ({Not} 39... Rxf2 40. Rxd4 Bxd4 41. Qe6+ Kc7 42. Qe7+ Kc8 43. Qe6+ Kc7 44. Qe7+ Kc8 45. Qe6+ $11) 40. b4 {[%emt 0:00:00]} Qe6 {[%emt 0:00:00]} 41. Qxe6+ {[%emt 0:08:27]} Nxe6 {[%emt 0:01:54]} 42. Rxd8+ {[%emt 0:00:00]} Nxd8 {[%emt 0:00:00]} 43. f3 {[%emt 0:00:00]} e3 {[%emt 0:00:00]} 44. f4 {[%emt 0:02:30] Against e2} Ra1 {[%emt 0:02:30]} 45. Rxa1 {[%emt 0:00:30]} Bxa1 {[%emt 0:00:30]} 46. Kg1 {[%emt 0:00:30]} Ne6 {[%emt 0:00:00] Weighted Error Value: White=0.56/Black=0.28 (precise)} 0-1